[Event "Early-Titled-Tuesday-Blitz-August-29-2023"]
[Site "Chess.com"]
[Date "2023.08.29"]
[Round "3"]
[White "Mmukka"]
[Black "Beltraxtor"]
[Result "0-1"]
[WhiteElo "2436"]
[BlackElo "2638"]
[TimeControl "180+1"]
[EndTime "8:29:00 PDT"]
[Termination "Beltraxtor won on time"]

1. e4 {[%clk 0:02:59.1]} 1... d6 {[%clk 0:02:50.4]} 2. d4 {[%clk 0:02:58.9]}
2... Nf6 {[%clk 0:02:50.6]} 3. Nc3 {[%clk 0:02:58.2]} 3... e5 {[%clk 0:02:51.2]}
4. Nf3 {[%clk 0:02:56.8]} 4... Nbd7 {[%clk 0:02:50.9]} 5. Rg1 {[%clk 0:02:56]}
5... g6 {[%clk 0:02:49.8]} 6. g4 {[%clk 0:02:54.8]} 6... Bg7 {[%clk 0:02:50.3]}
7. g5 {[%clk 0:02:49.8]} 7... Nh5 {[%clk 0:02:50.1]} 8. Be3 {[%clk 0:02:49]}
8... O-O {[%clk 0:02:48.5]} 9. Qd2 {[%clk 0:02:46.1]} 9... c6 {[%clk 0:02:47]}
10. O-O-O {[%clk 0:02:41.5]} 10... Re8 {[%clk 0:02:42.5]} 11. Kb1 {[%clk
0:02:21.9]} 11... Qc7 {[%clk 0:02:25.2]} 12. Be2 {[%clk 0:01:54.2]} 12... a6
{[%clk 0:01:41.4]} 13. Nh4 {[%clk 0:01:52.8]} 13... Nf4 {[%clk 0:01:40.4]} 14.
Bxf4 {[%clk 0:01:51.6]} 14... exf4 {[%clk 0:01:40.8]} 15. Qxf4 {[%clk
0:01:51.3]} 15... b5 {[%clk 0:01:40.9]} 16. Bg4 {[%clk 0:00:52.2]} 16... b4
{[%clk 0:01:37.4]} 17. Ne2 {[%clk 0:00:51.4]} 17... a5 {[%clk 0:01:28.9]} 18.
Nf5 {[%clk 0:00:45.1]} 18... gxf5 {[%clk 0:01:26.9]} 19. Bxf5 {[%clk 0:00:40.5]}
19... c5 {[%clk 0:01:20.1]} 20. Qh4 {[%clk 0:00:38.9]} 20... Nf8 {[%clk
0:01:19.3]} 21. Ng3 {[%clk 0:00:32]} 21... Ng6 {[%clk 0:01:17.5]} 22. Qg4 {[%clk
0:00:26.8]} 22... cxd4 {[%clk 0:00:32.4]} 23. Nh5 {[%clk 0:00:22.5]} 23... a4
{[%clk 0:00:28.5]} 24. Nxg7 {[%clk 0:00:20.6]} 24... Kxg7 {[%clk 0:00:26.7]} 25.
h4 {[%clk 0:00:21.5]} 25... b3 {[%clk 0:00:25.9]} 26. Rd2 {[%clk 0:00:13.4]}
26... bxa2+ {[%clk 0:00:21.8]} 27. Ka1 {[%clk 0:00:13.1]} 27... a3 {[%clk
0:00:22.1]} 28. Rd3 {[%clk 0:00:04.6]} 28... Qxc2 {[%clk 0:00:17.9]} 29. Rxa3
{[%clk 0:00:02.2]} 29... Rxa3 {[%clk 0:00:17.7]} 30. bxa3 {[%clk 0:00:03.1]}
30... Qc3+ {[%clk 0:00:12]} 31. Kxa2 {[%clk 0:00:03.3]} 31... Qc2+ {[%clk
0:00:09.1]} 32. Ka1 {[%clk 0:00:02.7]} 32... Ba6 {[%clk 0:00:09.6]} 33. Qd1
{[%clk 0:00:03.1]} 33... Qc3+ {[%clk 0:00:09.5]} 34. Ka2 {[%clk 0:00:03.5]}
34... Bc4+ {[%clk 0:00:09.7]} 0-1

[Event "Early-Titled-Tuesday-Blitz-August-29-2023"]
[Site "Chess.com"]
[Date "2023.08.29"]
[Round "3"]
[White "BashirliSaadat"]
[Black "DrDreBeats"]
[Result "0-1"]
[WhiteElo "2391"]
[BlackElo "2598"]
[TimeControl "180+1"]
[EndTime "8:29:00 PDT"]
[Termination "DrDreBeats won by checkmate"]

1. d4 {[%clk 0:03:00.9]} 1... Nf6 {[%clk 0:02:59.5]} 2. e3 {[%clk 0:02:59.5]}
2... g6 {[%clk 0:02:56.8]} 3. Bd3 {[%clk 0:02:57.9]} 3... Bg7 {[%clk 0:02:56.6]}
4. f4 {[%clk 0:02:56.7]} 4... O-O {[%clk 0:02:57.5]} 5. Nf3 {[%clk 0:02:55.9]}
5... c5 {[%clk 0:02:58.1]} 6. c3 {[%clk 0:02:55]} 6... d5 {[%clk 0:02:53.3]} 7.
Nbd2 {[%clk 0:02:53]} 7... Nc6 {[%clk 0:02:51.7]} 8. O-O {[%clk 0:02:52.3]} 8...
Nd7 {[%clk 0:02:41.2]} 9. Qe2 {[%clk 0:02:49]} 9... c4 {[%clk 0:02:31.6]} 10.
Bc2 {[%clk 0:02:46.8]} 10... b5 {[%clk 0:02:31.7]} 11. e4 {[%clk 0:02:44]} 11...
e6 {[%clk 0:02:25.6]} 12. f5 {[%clk 0:02:33]} 12... exf5 {[%clk 0:02:23.1]} 13.
exf5 {[%clk 0:02:26.8]} 13... b4 {[%clk 0:02:20.2]} 14. Ba4 {[%clk 0:01:58.2]}
14... Qc7 {[%clk 0:02:04.7]} 15. Re1 {[%clk 0:01:07.4]} 15... Nb6 {[%clk
0:01:46.4]} 16. Bxc6 {[%clk 0:01:04.9]} 16... Qxc6 {[%clk 0:01:44.7]} 17. fxg6
{[%clk 0:01:00.6]} 17... hxg6 {[%clk 0:01:42.2]} 18. Ne5 {[%clk 0:00:58.5]}
18... Qc7 {[%clk 0:01:40.7]} 19. Ndf3 {[%clk 0:00:54.2]} 19... Bf5 {[%clk
0:01:39.4]} 20. Bf4 {[%clk 0:00:46.9]} 20... Qb7 {[%clk 0:01:21.4]} 21. Nh4
{[%clk 0:00:40.6]} 21... Be4 {[%clk 0:01:19.6]} 22. Qg4 {[%clk 0:00:30.4]} 22...
Qc8 {[%clk 0:01:13.8]} 23. Qg3 {[%clk 0:00:22.7]} 23... bxc3 {[%clk 0:01:13.2]}
24. bxc3 {[%clk 0:00:22.2]} 24... Nd7 {[%clk 0:01:11.3]} 25. Nxd7 {[%clk
0:00:19.3]} 25... Qxd7 {[%clk 0:01:09.8]} 26. Be5 {[%clk 0:00:18.8]} 26... Bxe5
{[%clk 0:01:07]} 27. Qxe5 {[%clk 0:00:18.7]} 27... Qg4 {[%clk 0:01:05.6]} 28.
Qg3 {[%clk 0:00:16.7]} 28... Qxg3 {[%clk 0:01:05.7]} 29. hxg3 {[%clk 0:00:17.1]}
29... Rab8 {[%clk 0:01:06.1]} 30. Re2 {[%clk 0:00:16.9]} 30... Rb6 {[%clk
0:01:02.6]} 31. Nf3 {[%clk 0:00:16]} 31... f6 {[%clk 0:00:59.8]} 32. Nd2 {[%clk
0:00:12.5]} 32... Rb2 {[%clk 0:00:59.1]} 33. Kf2 {[%clk 0:00:12.4]} 33... Bd3
{[%clk 0:00:59]} 34. Rae1 {[%clk 0:00:06.8]} 34... Bxe2 {[%clk 0:00:58.6]} 35.
Rxe2 {[%clk 0:00:07.7]} 35... Rxa2 {[%clk 0:00:58.7]} 36. g4 {[%clk 0:00:05.6]}
36... a5 {[%clk 0:00:58.1]} 37. Ke1 {[%clk 0:00:04.9]} 37... Rb8 {[%clk
0:00:57.5]} 38. Re7 {[%clk 0:00:03.9]} 38... Kf8 {[%clk 0:00:54.3]} 39. Rd7
{[%clk 0:00:03.7]} 39... Ra1+ {[%clk 0:00:53.3]} 40. Ke2 {[%clk 0:00:03.7]}
40... Rb2 {[%clk 0:00:53.2]} 41. Rxd5 {[%clk 0:00:03.5]} 41... Raa2 {[%clk
0:00:53.3]} 42. Rc5 {[%clk 0:00:02.7]} 42... Rxd2+ {[%clk 0:00:53.4]} 43. Ke3
{[%clk 0:00:03.6]} 43... Rxg2 {[%clk 0:00:53.4]} 44. Rxc4 {[%clk 0:00:03.4]}
44... Rg3+ {[%clk 0:00:53.5]} 45. Kf4 {[%clk 0:00:02.8]} 45... Rag2 {[%clk
0:00:49.9]} 46. Rc8+ {[%clk 0:00:02.7]} 46... Ke7 {[%clk 0:00:49.8]} 47. Rc7+
{[%clk 0:00:03.4]} 47... Kd6 {[%clk 0:00:50.1]} 48. Rg7 {[%clk 0:00:03.9]} 48...
Rxg4+ {[%clk 0:00:50.3]} 49. Ke3 {[%clk 0:00:04.5]} 49... R2g3+ {[%clk
0:00:50.1]} 50. Kd2 {[%clk 0:00:04.8]} 50... Rh4 {[%clk 0:00:50.5]} 51. Rf7
{[%clk 0:00:04.6]} 51... Rh2+ {[%clk 0:00:50.6]} 52. Ke1 {[%clk 0:00:04.2]}
52... Rg1# {[%clk 0:00:51.1]} 0-1

[Event "Early-Titled-Tuesday-Blitz-August-29-2023"]
[Site "Chess.com"]
[Date "2023.08.29"]
[Round "3"]
[White "ChEsper99"]
[Black "workhard91"]
[Result "0-1"]
[WhiteElo "2130"]
[BlackElo "2415"]
[TimeControl "180+1"]
[EndTime "8:29:01 PDT"]
[Termination "workhard91 won on time"]

1. e4 {[%clk 0:03:00.9]} 1... c5 {[%clk 0:02:59.3]} 2. c3 {[%clk 0:03:00.4]}
2... Nf6 {[%clk 0:02:58.3]} 3. e5 {[%clk 0:02:59.5]} 3... Nd5 {[%clk 0:02:58.8]}
4. d4 {[%clk 0:03:00.3]} 4... cxd4 {[%clk 0:02:59.1]} 5. cxd4 {[%clk 0:03:01.2]}
5... d6 {[%clk 0:02:59.6]} 6. Nf3 {[%clk 0:02:59.4]} 6... Nc6 {[%clk 0:02:56.2]}
7. Bc4 {[%clk 0:02:58.6]} 7... e6 {[%clk 0:02:56.8]} 8. Qe2 {[%clk 0:02:56.2]}
8... dxe5 {[%clk 0:02:26.2]} 9. dxe5 {[%clk 0:02:51.5]} 9... Be7 {[%clk
0:02:25.4]} 10. O-O {[%clk 0:02:51.3]} 10... O-O {[%clk 0:02:26.1]} 11. Rd1
{[%clk 0:02:50.4]} 11... Qc7 {[%clk 0:02:15.2]} 12. Nc3 {[%clk 0:02:26.6]} 12...
Nxc3 {[%clk 0:02:14.7]} 13. bxc3 {[%clk 0:02:27.5]} 13... b6 {[%clk 0:01:56.2]}
14. h4 {[%clk 0:02:19.1]} 14... Bb7 {[%clk 0:01:53.9]} 15. h5 {[%clk 0:02:17.7]}
15... Rfd8 {[%clk 0:01:52.4]} 16. Bf4 {[%clk 0:02:10.8]} 16... Rxd1+ {[%clk
0:01:42.2]} 17. Rxd1 {[%clk 0:02:10.5]} 17... Rd8 {[%clk 0:01:43.1]} 18. h6
{[%clk 0:01:56.2]} 18... Rxd1+ {[%clk 0:01:36.6]} 19. Qxd1 {[%clk 0:01:57.1]}
19... g6 {[%clk 0:01:37.2]} 20. Qd2 {[%clk 0:01:22.2]} 20... Na5 {[%clk
0:01:31.9]} 21. Be2 {[%clk 0:01:18.7]} 21... Bd5 {[%clk 0:01:28]} 22. Bg5 {[%clk
0:01:09.2]} 22... Bf8 {[%clk 0:01:28.2]} 23. Qe3 {[%clk 0:00:57.8]} 23... Nc4
{[%clk 0:01:27.2]} 24. Bxc4 {[%clk 0:00:57.4]} 24... Qxc4 {[%clk 0:01:28.1]} 25.
Nh2 {[%clk 0:00:48.3]} 25... Bc5 {[%clk 0:01:15.3]} 26. Qf4 {[%clk 0:00:33.9]}
26... Qxf4 {[%clk 0:01:15.2]} 27. Bxf4 {[%clk 0:00:33.8]} 27... Bxa2 {[%clk
0:01:16.1]} 28. Ng4 {[%clk 0:00:30.8]} 28... Be7 {[%clk 0:00:57.8]} 29. Nf6+
{[%clk 0:00:17.5]} 29... Kh8 {[%clk 0:00:57.9]} 30. Kf1 {[%clk 0:00:15]} 30...
Bc4+ {[%clk 0:00:57.2]} 31. Ke1 {[%clk 0:00:15.2]} 31... a5 {[%clk 0:00:58.1]}
32. Kd2 {[%clk 0:00:15.2]} 32... a4 {[%clk 0:00:54.7]} 33. Kc2 {[%clk 0:00:15]}
33... b5 {[%clk 0:00:52.2]} 34. Be3 {[%clk 0:00:11]} 34... Bf1 {[%clk
0:00:27.4]} 35. g4 {[%clk 0:00:10.2]} 35... Bc4 {[%clk 0:00:20.3]} 36. g5 {[%clk
0:00:09.7]} 36... a3 {[%clk 0:00:18.8]} 37. Bd4 {[%clk 0:00:03.4]} 37... a2
{[%clk 0:00:14.1]} 38. Kb2 {[%clk 0:00:03.3]} 38... Ba3+ {[%clk 0:00:14.8]} 39.
Ka1 {[%clk 0:00:03.1]} 39... Bc1 {[%clk 0:00:15.2]} 40. Nd7 {[%clk 0:00:01.5]}
40... Bxg5 {[%clk 0:00:14.1]} 0-1

[Event "Early-Titled-Tuesday-Blitz-August-29-2023"]
[Site "Chess.com"]
[Date "2023.08.29"]
[Round "3"]
[White "PeshkaCh"]
[Black "DeArron_Fox"]
[Result "1-0"]
[WhiteElo "2791"]
[BlackElo "2492"]
[TimeControl "180+1"]
[EndTime "8:29:05 PDT"]
[Termination "PeshkaCh won by resignation"]

1. Nf3 {[%clk 0:03:00.9]} 1... d5 {[%clk 0:02:58.9]} 2. d4 {[%clk 0:03:01]} 2...
Nf6 {[%clk 0:02:58.5]} 3. c4 {[%clk 0:03:01.7]} 3... e6 {[%clk 0:02:58.4]} 4.
Nc3 {[%clk 0:03:01.4]} 4... Be7 {[%clk 0:02:58.4]} 5. Bg5 {[%clk 0:03:01.3]}
5... O-O {[%clk 0:02:58.2]} 6. e3 {[%clk 0:03:01.7]} 6... h6 {[%clk 0:02:57.8]}
7. Bh4 {[%clk 0:03:00.7]} 7... b6 {[%clk 0:02:57.7]} 8. cxd5 {[%clk 0:03:00]}
8... Nxd5 {[%clk 0:02:57.9]} 9. Bxe7 {[%clk 0:02:59.7]} 9... Qxe7 {[%clk
0:02:58.8]} 10. Bd3 {[%clk 0:03:00.3]} 10... Bb7 {[%clk 0:02:58.5]} 11. O-O
{[%clk 0:03:00.2]} 11... Nd7 {[%clk 0:02:58.7]} 12. Rc1 {[%clk 0:02:56.5]} 12...
c5 {[%clk 0:02:55.6]} 13. Re1 {[%clk 0:02:46.9]} 13... Rfd8 {[%clk 0:02:53.2]}
14. a3 {[%clk 0:02:42.8]} 14... cxd4 {[%clk 0:02:37.8]} 15. Nxd4 {[%clk
0:02:36.4]} 15... Nc5 {[%clk 0:02:32.6]} 16. Nxd5 {[%clk 0:02:15.5]} 16... Rxd5
{[%clk 0:01:43.7]} 17. Bf1 {[%clk 0:01:31.3]} 17... e5 {[%clk 0:00:51.4]} 18.
Nf5 {[%clk 0:01:31]} 18... Qg5 {[%clk 0:00:42.2]} 19. Qc2 {[%clk 0:01:25.7]}
19... Rdd8 {[%clk 0:00:36.8]} 20. Ng3 {[%clk 0:01:22.3]} 20... Rac8 {[%clk
0:00:14.7]} 21. Qe2 {[%clk 0:00:33.9]} 21... g6 {[%clk 0:00:12.7]} 22. b4 {[%clk
0:00:32.3]} 22... Ne4 {[%clk 0:00:06.6]} 23. Rxc8 {[%clk 0:00:26.7]} 23... Rxc8
{[%clk 0:00:07.5]} 24. Nxe4 {[%clk 0:00:20.5]} 24... Bxe4 {[%clk 0:00:08.4]} 25.
Qa6 {[%clk 0:00:20.7]} 25... Rc7 {[%clk 0:00:08.3]} 26. Qa4 {[%clk 0:00:19.7]}
26... h5 {[%clk 0:00:06.3]} 27. Qe8+ {[%clk 0:00:19.2]} 27... Kg7 {[%clk
0:00:06.5]} 28. Rd1 {[%clk 0:00:19.3]} 28... h4 {[%clk 0:00:02.7]} 29. Rd8
{[%clk 0:00:17.2]} 29... Kf6 {[%clk 0:00:02.5]} 30. Qh8+ {[%clk 0:00:15.9]}
30... Ke6 {[%clk 0:00:02.1]} 31. Re8+ {[%clk 0:00:13.1]} 31... Re7 {[%clk
0:00:01.7]} 32. Rb8 {[%clk 0:00:10.4]} 32... h3 {[%clk 0:00:02.2]} 33. Qc8+
{[%clk 0:00:10.8]} 33... Kf6 {[%clk 0:00:02.6]} 34. Qxh3 {[%clk 0:00:10.8]}
34... Rc7 {[%clk 0:00:02.4]} 35. Qh8+ {[%clk 0:00:10.9]} 35... Ke6 {[%clk
0:00:02.4]} 36. Re8+ {[%clk 0:00:10.9]} 36... Re7 {[%clk 0:00:01.9]} 37. Rd8
{[%clk 0:00:10.4]} 37... Rd7 {[%clk 0:00:02.1]} 38. Qe8+ {[%clk 0:00:10]} 38...
Qe7 {[%clk 0:00:02.5]} 39. Bc4+ {[%clk 0:00:10]} 39... Kf6 {[%clk 0:00:01.8]}
40. Qxd7 {[%clk 0:00:09.7]} 1-0

[Event "Early-Titled-Tuesday-Blitz-August-29-2023"]
[Site "Chess.com"]
[Date "2023.08.29"]
[Round "3"]
[White "Mr_November18"]
[Black "GasconJR"]
[Result "0-1"]
[WhiteElo "1897"]
[BlackElo "2664"]
[TimeControl "180+1"]
[EndTime "8:29:06 PDT"]
[Termination "GasconJR won on time"]

1. e4 {[%clk 0:03:00.9]} 1... e5 {[%clk 0:02:58.8]} 2. Nf3 {[%clk 0:02:55.7]}
2... Nc6 {[%clk 0:02:59]} 3. d4 {[%clk 0:02:55.6]} 3... exd4 {[%clk 0:02:57.6]}
4. Bc4 {[%clk 0:02:55.6]} 4... Bc5 {[%clk 0:02:55.8]} 5. c3 {[%clk 0:02:55.4]}
5... Nf6 {[%clk 0:02:52]} 6. e5 {[%clk 0:02:55.6]} 6... d5 {[%clk 0:02:50.4]} 7.
Bb5 {[%clk 0:02:55.2]} 7... Ne4 {[%clk 0:02:49.1]} 8. cxd4 {[%clk 0:02:45.7]}
8... Bb6 {[%clk 0:02:49.2]} 9. h3 {[%clk 0:02:43.5]} 9... O-O {[%clk 0:02:47.4]}
10. O-O {[%clk 0:02:43.5]} 10... f6 {[%clk 0:02:42.5]} 11. Nc3 {[%clk
0:02:40.7]} 11... fxe5 {[%clk 0:02:31.5]} 12. dxe5 {[%clk 0:02:35.6]} 12... Nxc3
{[%clk 0:02:03.3]} 13. bxc3 {[%clk 0:02:32.3]} 13... Ne7 {[%clk 0:01:56.5]} 14.
Bg5 {[%clk 0:02:18.5]} 14... c6 {[%clk 0:01:55.2]} 15. Bd3 {[%clk 0:02:16.9]}
15... h6 {[%clk 0:01:50]} 16. Bh4 {[%clk 0:02:10.9]} 16... Qe8 {[%clk
0:01:46.1]} 17. Qe2 {[%clk 0:02:06.8]} 17... Nf5 {[%clk 0:01:43.4]} 18. Bxf5
{[%clk 0:01:59.3]} 18... Bxf5 {[%clk 0:01:42.9]} 19. Bg3 {[%clk 0:01:55.9]}
19... Qg6 {[%clk 0:01:38.2]} 20. Nd4 {[%clk 0:01:12.1]} 20... Bd3 {[%clk
0:01:32.2]} 21. Qe3 {[%clk 0:01:12.4]} 21... Bxf1 {[%clk 0:01:30.6]} 22. Rxf1
{[%clk 0:01:12.3]} 22... c5 {[%clk 0:01:26.7]} 23. Nf3 {[%clk 0:01:07.4]} 23...
c4 {[%clk 0:01:00.4]} 24. Nd4 {[%clk 0:01:04.6]} 24... Qe4 {[%clk 0:00:58.5]}
25. Qd2 {[%clk 0:00:58.3]} 25... Bxd4 {[%clk 0:00:53.9]} 26. cxd4 {[%clk
0:00:57.8]} 26... Rac8 {[%clk 0:00:52.2]} 27. Re1 {[%clk 0:00:57.3]} 27... Qd3
{[%clk 0:00:46.6]} 28. Qxd3 {[%clk 0:00:48.1]} 28... cxd3 {[%clk 0:00:46.5]} 29.
Rd1 {[%clk 0:00:48.1]} 29... Rc3 {[%clk 0:00:45.1]} 30. f4 {[%clk 0:00:46.1]}
30... g6 {[%clk 0:00:41.8]} 31. Kf2 {[%clk 0:00:39.4]} 31... Rc2+ {[%clk
0:00:37.4]} 32. Kf3 {[%clk 0:00:29.7]} 32... Rfc8 {[%clk 0:00:36.1]} 33. Rxd3
{[%clk 0:00:26.3]} 33... R8c3 {[%clk 0:00:34.7]} 34. Rxc3 {[%clk 0:00:25.6]}
34... Rxc3+ {[%clk 0:00:35.6]} 35. Kg4 {[%clk 0:00:25.7]} 35... Kf7 {[%clk
0:00:29.2]} 36. Bf2 {[%clk 0:00:21.8]} 36... Ke6 {[%clk 0:00:27.9]} 37. Bh4
{[%clk 0:00:11.5]} 37... Ra3 {[%clk 0:00:26]} 38. Bf6 {[%clk 0:00:06.3]} 38...
Rxa2 {[%clk 0:00:23.2]} 39. g3 {[%clk 0:00:06.5]} 39... Ra3 {[%clk 0:00:23.1]}
40. Bg7 {[%clk 0:00:05.3]} 40... h5+ {[%clk 0:00:20.9]} 41. Kh4 {[%clk
0:00:01.2]} 41... Kf5 {[%clk 0:00:13.8]} 0-1

[Event "Early-Titled-Tuesday-Blitz-August-29-2023"]
[Site "Chess.com"]
[Date "2023.08.29"]
[Round "3"]
[White "GroovyKettle"]
[Black "Arek_pacitan"]
[Result "1-0"]
[WhiteElo "2904"]
[BlackElo "2620"]
[TimeControl "180+1"]
[EndTime "8:29:08 PDT"]
[Termination "GroovyKettle won by resignation"]

1. c4 {[%clk 0:03:00.9]} 1... Nf6 {[%clk 0:02:49.3]} 2. g3 {[%clk 0:02:58.4]}
2... e6 {[%clk 0:02:46.4]} 3. Bg2 {[%clk 0:02:57.4]} 3... d5 {[%clk 0:02:46.9]}
4. Nf3 {[%clk 0:02:58.1]} 4... Be7 {[%clk 0:02:46.7]} 5. O-O {[%clk 0:02:57.5]}
5... O-O {[%clk 0:02:47.3]} 6. b3 {[%clk 0:02:56]} 6... b6 {[%clk 0:02:46.2]} 7.
Bb2 {[%clk 0:02:55.6]} 7... Bb7 {[%clk 0:02:46.8]} 8. d4 {[%clk 0:02:52.5]} 8...
Nbd7 {[%clk 0:02:44.4]} 9. Nc3 {[%clk 0:02:49.4]} 9... c5 {[%clk 0:02:44.9]} 10.
dxc5 {[%clk 0:02:48]} 10... Nxc5 {[%clk 0:02:41.3]} 11. Ne5 {[%clk 0:02:35.4]}
11... Qb8 {[%clk 0:02:24.7]} 12. Nd3 {[%clk 0:02:06.6]} 12... dxc4 {[%clk
0:02:20.7]} 13. Bxb7 {[%clk 0:02:05.7]} 13... Qxb7 {[%clk 0:02:08]} 14. Nxc5
{[%clk 0:01:59.7]} 14... bxc5 {[%clk 0:02:05.3]} 15. Na4 {[%clk 0:01:45.8]}
15... cxb3 {[%clk 0:02:04.3]} 16. axb3 {[%clk 0:01:46.7]} 16... Rfd8 {[%clk
0:01:46.7]} 17. Qc2 {[%clk 0:01:44.8]} 17... Rac8 {[%clk 0:01:45.2]} 18. Rfd1
{[%clk 0:01:28.5]} 18... h6 {[%clk 0:01:39.8]} 19. Rxd8+ {[%clk 0:01:27.4]}
19... Bxd8 {[%clk 0:01:37.2]} 20. Nxc5 {[%clk 0:00:49.3]} 20... Qb5 {[%clk
0:01:13.8]} 21. Rc1 {[%clk 0:00:46.8]} 21... Be7 {[%clk 0:01:08.6]} 22. Bd4
{[%clk 0:00:39.2]} 22... Nd7 {[%clk 0:00:36]} 23. Qd3 {[%clk 0:00:13.8]} 23...
Rxc5 {[%clk 0:00:34.3]} 24. Rxc5 {[%clk 0:00:12.1]} 24... Qb7 {[%clk 0:00:22.9]}
25. Rc2 {[%clk 0:00:12.1]} 25... Nf6 {[%clk 0:00:21]} 26. Bxf6 {[%clk
0:00:11.9]} 26... Bxf6 {[%clk 0:00:21.9]} 27. Qc4 {[%clk 0:00:12.3]} 27... Kh7
{[%clk 0:00:21.1]} 28. Qd3+ {[%clk 0:00:12.2]} 28... g6 {[%clk 0:00:21.2]} 29.
Qf3 {[%clk 0:00:11.7]} 29... Qe7 {[%clk 0:00:17.8]} 30. Ra2 {[%clk 0:00:11.2]}
30... Kg7 {[%clk 0:00:17.5]} 31. Qe3 {[%clk 0:00:11.4]} 31... h5 {[%clk
0:00:13.1]} 32. Rxa7 {[%clk 0:00:10.9]} 32... Qd8 {[%clk 0:00:13.1]} 33. Ra4
{[%clk 0:00:10.3]} 33... h4 {[%clk 0:00:12.9]} 34. Kg2 {[%clk 0:00:10.8]} 34...
Qd5+ {[%clk 0:00:12.3]} 35. Qf3 {[%clk 0:00:10.6]} 35... Qd7 {[%clk 0:00:12.4]}
36. Rf4 {[%clk 0:00:09.8]} 36... Bg5 {[%clk 0:00:11.4]} 37. Rg4 {[%clk
0:00:10.2]} 37... Bf6 {[%clk 0:00:11.5]} 38. gxh4 {[%clk 0:00:10.8]} 38... Qb5
{[%clk 0:00:09.8]} 39. Rf4 {[%clk 0:00:08.2]} 39... Be5 {[%clk 0:00:09.8]} 40.
Rxf7+ {[%clk 0:00:08.4]} 40... Kh6 {[%clk 0:00:09.5]} 41. Qe3+ {[%clk
0:00:08.4]} 1-0

[Event "Early-Titled-Tuesday-Blitz-August-29-2023"]
[Site "Chess.com"]
[Date "2023.08.29"]
[Round "3"]
[White "InitiatingASC"]
[Black "Andrei_Skvortsov"]
[Result "0-1"]
[WhiteElo "2341"]
[BlackElo "2687"]
[TimeControl "180+1"]
[EndTime "8:29:09 PDT"]
[Termination "Andrei_Skvortsov won by resignation"]

1. e4 {[%clk 0:03:00.9]} 1... c6 {[%clk 0:02:59.1]} 2. Nf3 {[%clk 0:02:59.1]}
2... d5 {[%clk 0:02:59.6]} 3. exd5 {[%clk 0:02:58.8]} 3... Qxd5 {[%clk
0:02:57.1]} 4. Nc3 {[%clk 0:02:56.4]} 4... Qa5 {[%clk 0:02:56.7]} 5. d4 {[%clk
0:02:52.3]} 5... Nf6 {[%clk 0:02:57.1]} 6. Bc4 {[%clk 0:02:42.9]} 6... Bf5
{[%clk 0:02:54.6]} 7. Bd2 {[%clk 0:02:35.8]} 7... Qc7 {[%clk 0:02:53.2]} 8. O-O
{[%clk 0:02:14.6]} 8... b5 {[%clk 0:02:49.5]} 9. Bb3 {[%clk 0:02:11.4]} 9... b4
{[%clk 0:02:49.9]} 10. Ne2 {[%clk 0:02:07.3]} 10... e6 {[%clk 0:02:47.3]} 11.
Ng3 {[%clk 0:02:04.4]} 11... Bg6 {[%clk 0:02:45.4]} 12. Ne5 {[%clk 0:02:02.4]}
12... Bd6 {[%clk 0:02:43.9]} 13. Nxg6 {[%clk 0:01:50.8]} 13... hxg6 {[%clk
0:02:44.8]} 14. Re1 {[%clk 0:01:47.7]} 14... Nbd7 {[%clk 0:02:42.7]} 15. Qf3
{[%clk 0:01:42]} 15... Nb6 {[%clk 0:02:39.9]} 16. Bg5 {[%clk 0:01:27.3]} 16...
O-O-O {[%clk 0:02:36.4]} 17. Bxf6 {[%clk 0:01:23.2]} 17... gxf6 {[%clk
0:02:37.3]} 18. Qxf6 {[%clk 0:01:23.2]} 18... a5 {[%clk 0:02:32.7]} 19. c3
{[%clk 0:01:13.3]} 19... a4 {[%clk 0:02:30.2]} 20. Bc2 {[%clk 0:01:13.2]} 20...
Nd5 {[%clk 0:02:26.7]} 21. Qf3 {[%clk 0:01:11.4]} 21... Nb6 {[%clk 0:02:20.8]}
22. Be4 {[%clk 0:01:09.5]} 22... Kb7 {[%clk 0:02:20.1]} 23. c4 {[%clk
0:00:40.4]} 23... Nxc4 {[%clk 0:02:15.9]} 24. Rac1 {[%clk 0:00:39.9]} 24... Na5
{[%clk 0:02:16.4]} 25. d5 {[%clk 0:00:28]} 25... exd5 {[%clk 0:02:13.4]} 26.
Bxd5 {[%clk 0:00:28.3]} 26... Bxg3 {[%clk 0:02:07]} 27. Bxc6+ {[%clk 0:00:27.2]}
27... Nxc6 {[%clk 0:02:05.8]} 28. hxg3 {[%clk 0:00:24]} 28... Rh5 {[%clk
0:02:01.9]} 29. Rc4 {[%clk 0:00:19]} 29... Rb5 {[%clk 0:01:59.8]} 30. Rec1
{[%clk 0:00:18.4]} 30... Rd6 {[%clk 0:01:59.5]} 31. Qe4 {[%clk 0:00:17.2]} 31...
Rb6 {[%clk 0:01:56.7]} 32. Rc5 {[%clk 0:00:16.1]} 32... Qd7 {[%clk 0:01:54.7]}
33. Qc4 {[%clk 0:00:14.3]} 33... Rd1+ {[%clk 0:01:53.5]} 34. Kh2 {[%clk
0:00:14.2]} 34... Rxc1 {[%clk 0:01:52.8]} 35. Qxc1 {[%clk 0:00:14.4]} 35... Nd4
{[%clk 0:01:50.4]} 36. Qf4 {[%clk 0:00:11.1]} 36... f5 {[%clk 0:01:46.2]} 37.
Qe5 {[%clk 0:00:10.4]} 37... Ne6 {[%clk 0:01:45]} 38. Rd5 {[%clk 0:00:10.5]}
38... Qc7 {[%clk 0:01:42.6]} 39. Qh8 {[%clk 0:00:09.8]} 39... f4 {[%clk
0:01:42.2]} 40. Qe8 {[%clk 0:00:09.2]} 40... fxg3+ {[%clk 0:01:41.6]} 41. fxg3
{[%clk 0:00:10.1]} 41... Nc5 {[%clk 0:01:41.4]} 42. Re5 {[%clk 0:00:09.8]} 42...
Rd6 {[%clk 0:01:39.3]} 43. Qb5+ {[%clk 0:00:08.2]} 43... Rb6 {[%clk 0:01:39]}
44. Qxc5 {[%clk 0:00:08.6]} 44... Qxc5 {[%clk 0:01:38.3]} 45. Rxc5 {[%clk
0:00:09.5]} 45... Ka6 {[%clk 0:01:32.4]} 46. Kh3 {[%clk 0:00:08.7]} 46... Rd6
{[%clk 0:01:31.3]} 47. Rc4 {[%clk 0:00:08.5]} 47... Kb5 {[%clk 0:01:31.1]} 48.
Rc2 {[%clk 0:00:08.6]} 48... Rd4 {[%clk 0:01:29.3]} 49. g4 {[%clk 0:00:08.2]}
49... g5 {[%clk 0:01:28.8]} 50. Rf2 {[%clk 0:00:07.5]} 50... Kc4 {[%clk
0:01:25.4]} 51. Kg3 {[%clk 0:00:07.2]} 51... Rd3+ {[%clk 0:01:24.6]} 52. Rf3
{[%clk 0:00:06.1]} 52... Rd2 {[%clk 0:01:24.7]} 53. Rf2 {[%clk 0:00:06.3]} 53...
Rxf2 {[%clk 0:01:16.6]} 54. Kxf2 {[%clk 0:00:05.9]} 54... Kd3 {[%clk 0:01:16.2]}
55. b3 {[%clk 0:00:03.2]} 55... axb3 {[%clk 0:01:12.9]} 56. axb3 {[%clk
0:00:03.1]} 56... Kc3 {[%clk 0:01:13.4]} 57. Kf3 {[%clk 0:00:03.8]} 57... Kxb3
{[%clk 0:01:13.7]} 58. Ke4 {[%clk 0:00:04.7]} 58... Kc3 {[%clk 0:01:13.7]} 59.
Kf5 {[%clk 0:00:05.6]} 59... b3 {[%clk 0:01:14.5]} 60. Kxg5 {[%clk 0:00:06.5]}
60... b2 {[%clk 0:01:15.2]} 61. Kh6 {[%clk 0:00:07.4]} 61... b1=Q {[%clk
0:01:15.5]} 62. g5 {[%clk 0:00:08.3]} 62... Qh1+ {[%clk 0:01:15.2]} 63. Kg7
{[%clk 0:00:08.3]} 63... Qxg2 {[%clk 0:01:15.4]} 64. g6 {[%clk 0:00:09.2]} 64...
Qg5 {[%clk 0:01:03.2]} 65. Kf7 {[%clk 0:00:09]} 65... Qf5+ {[%clk 0:01:03.1]}
66. Kg7 {[%clk 0:00:09]} 66... Kd4 {[%clk 0:01:03.5]} 67. Kh6 {[%clk 0:00:09.6]}
67... Qh3+ {[%clk 0:01:03.5]} 68. Kg7 {[%clk 0:00:08]} 68... Ke5 {[%clk
0:01:03.2]} 69. Kf8 {[%clk 0:00:08.4]} 69... Kf6 {[%clk 0:01:02.2]} 70. g7
{[%clk 0:00:08.6]} 0-1